bitfinex-derivatives/quotes_BTCF0:USTF0_20251119
["timestamp","ask_amount","ask_price","bid_price","bid_amount"]
[1763546969526,0.04444,91697.0,91696.0,0.0404]
[1763546970622,0.04444,91697.0,91696.0,0.001]
[1763546972328,0.04444,91697.0,91696.0,0.0404]
[1763546974828,0.04444,91697.0,91696.0,0.001]
[1763546975619,0.04387,91695.0,91694.0,1e-08]
[1763546975819,0.04387,91695.0,91676.0,0.03876958]
[1763546975820,0.1530157,91679.0,91678.0,0.1485456]
[1763546976730,0.04387,91679.0,91678.0,0.1485456]
[1763546977126,0.04387,91679.0,91678.0,0.1495456]
[1763546977332,0.04387,91679.0,91678.0,0.1101456]
[1763546977526,0.04287,91679.0,91678.0,0.1091456]
[1763546977829,0.04287,91679.0,91678.0,0.1298456]
[1763546978230,0.04287,91679.0,91678.0,0.1505456]
[1763546978430,0.04287,91679.0,91678.0,0.1298456]
[1763546978630,0.04287,91679.0,91678.0,0.1505456]
[1763546979931,0.04287,91679.0,91678.0,0.1091456]
[1763546980134,0.04287,91679.0,91678.0,0.1505456]
[1763546980336,0.04287,91679.0,91678.0,0.1298456]
[1763546980836,0.1530263,91670.0,91669.0,0.6163273]
[1763546981128,0.04606803,91670.0,91669.0,0.5115211]
[1763546982926,0.04606803,91670.0,91669.0,0.4908211]
[1763546983230,0.15522433,91670.0,91669.0,0.5115217]
[1763546983529,0.15522433,91670.0,91669.0,0.0415636]
[1763546983926,0.15522433,91670.0,91669.0,0.1507217]
[1763546985824,0.04606803,91670.0,91669.0,0.1507217]
[1763546987136,0.05987803,91670.0,91669.0,0.1507217]
[1763546988627,0.05987803,91670.0,91669.0,0.1507211]
[1763546988827,0.05987803,91670.0,91669.0,0.1093211]
[1763546989036,0.05987803,91670.0,91669.0,0.0001636]
[1763546990840,0.1091575,91669.0,91664.0,0.00013305]
[1763546991036,0.1668423,91665.0,91664.0,0.00013305]
[1763546991238,0.153049,91653.0,91652.0,0.1505777]
[1763546991736,0.153049,91653.0,91646.0,0.00027279]
[1763546991737,0.01600803,91650.0,91648.0,0.1505821]
[1763546991933,0.04387,91649.0,91648.0,0.1505821]
[1763546992141,0.0439512,91649.0,91648.0,0.1505821]
[1763546993246,0.0439512,91649.0,91648.0,0.1308821]
[1763546993543,0.0439512,91649.0,91648.0,0.1515821]
[1763546993737,0.0439512,91649.0,91648.0,0.1525821]
[1763547000336,0.0211412,91649.0,91648.0,0.1525821]
[1763547000642,0.0723,91656.0,91648.0,0.1525821]
[1763547000643,0.0723,91668.0,91657.0,0.0414]
[1763547000847,0.3608,91674.0,91673.0,0.0414]
[1763547001049,0.38186,91674.0,91673.0,0.0414]
[1763547001243,0.41848,91674.0,91673.0,0.0414]
[1763547001544,0.04254,91661.0,91660.0,0.1462062]
[1763547001860,0.05796,91668.0,91667.0,0.0414]
[1763547002044,0.00236163,91670.0,91669.0,0.0414]
[1763547002244,0.15566793,91670.0,91669.0,0.0414]
[1763547002441,0.15566793,91670.0,91669.0,0.0207]
[1763547002946,0.15566793,91670.0,91669.0,0.0414]
[1763547003137,0.04651163,91670.0,91669.0,0.0414]
[1763547004841,0.04651163,91670.0,91658.0,0.4656062]
[1763547004842,0.15566793,91670.0,91658.0,0.1048062]
[1763547005040,0.15566793,91670.0,91634.0,0.07831676]
[1763547005041,0.04415,91652.0,91651.0,0.0415636]
[1763547005242,0.40503048,91652.0,91651.0,0.0415636]
[1763547006253,0.40503048,91652.0,91651.0,0.0208636]
[1763547006556,0.40503048,91652.0,91651.0,0.0001636]
[1763547006943,0.40503048,91652.0,91651.0,0.1517427]
[1763547007855,8.048e-05,91652.0,91651.0,0.1517427]
[1763547008147,0.40503048,91652.0,91651.0,0.1517427]
[1763547008455,0.40503048,91652.0,91651.0,0.0021636]
[1763547009743,0.40503048,91652.0,91651.0,0.0228636]
[1763547009945,0.40503048,91652.0,91651.0,0.0435636]
[1763547010555,0.38355048,91652.0,91651.0,0.0435636]
[1763547010944,0.02275048,91652.0,91651.0,0.0435636]
[1763547011146,8.048e-05,91652.0,91651.0,0.0435636]
[1763547011647,0.02275048,91652.0,91651.0,0.0435636]
[1763547011843,8.048e-05,91652.0,91651.0,0.0435636]
[1763547012752,8.048e-05,91652.0,91651.0,0.0534936]
[1763547013456,8.048e-05,91652.0,91651.0,0.0435636]
[1763547014355,8.048e-05,91652.0,91651.0,0.0534936]
[1763547015848,0.04423048,91652.0,91651.0,0.0435636]
[1763547016455,8.048e-05,91652.0,91651.0,0.0435636]
[1763547017859,0.04423048,91652.0,91651.0,0.0435636]
[1763547020054,0.02275048,91652.0,91651.0,0.0435636]
[1763547021157,8.048e-05,91652.0,91651.0,0.0435636]
[1763547021458,0.04423048,91652.0,91651.0,0.0435636]
[1763547022659,0.04423048,91652.0,91651.0,0.0021636]
[1763547023056,0.04423048,91652.0,91651.0,0.0228636]
[1763547023360,0.02275048,91652.0,91651.0,0.0435636]
[1763547023543,0.04390048,91652.0,91651.0,0.0435636]
[1763547029257,0.04390048,91652.0,91651.0,0.1527423]
[1763547031064,8.048e-05,91652.0,91651.0,0.1527423]
[1763547032259,0.02152,91665.0,91664.0,0.1505639]
[1763547032852,0.04344,91665.0,91664.0,0.1505639]
[1763547033956,0.02152,91665.0,91664.0,0.1505639]
[1763547034157,0.0436036,91670.0,91669.0,0.1505579]
[1763547034363,0.04580163,91670.0,91669.0,0.1505579]
[1763547044466,0.05844163,91670.0,91669.0,0.1505579]
[1763547049673,0.00236163,91670.0,91669.0,0.1505579]
[1763547050273,0.04580163,91670.0,91669.0,0.1505579]
[1763547051059,0.05844163,91670.0,91669.0,0.1505579]
[1763547052776,0.00236163,91670.0,91669.0,0.1505579]
[1763547052967,0.04580163,91670.0,91669.0,0.2557979]
[1763547053270,0.05844163,91670.0,91669.0,0.2557979]
[1763547053474,0.3608,91681.0,91680.0,0.1505442]
[1763547053675,0.40424,91681.0,91680.0,0.1505442]
[1763547054064,0.04344,91681.0,91680.0,0.1505442]
[1763547054673,0.04344,91681.0,91675.0,0.3608]
[1763547054674,0.05827803,91680.0,91679.0,0.1505454]
[1763547060575,0.04344,91675.0,91674.0,0.12594]
[1763547060776,0.04344,91675.0,91674.0,0.2557913]
[1763547060968,0.04344,91675.0,91674.0,0.1505513]
[1763547064070,0.05644,91675.0,91674.0,0.1505513]
[1763547064265,0.04344,91675.0,91674.0,0.1505513]
[1763547064877,0.05644,91675.0,91674.0,0.1505513]
[1763547070075,0.03932717,91684.0,91671.0,0.0001636]
[1763547070076,0.03932717,91685.0,91678.0,0.0414]
[1763547070284,0.02288,91685.0,91684.0,0.1091401]
[1763547070579,0.04462,91685.0,91684.0,0.1505401]
[1763547070966,0.02288,91685.0,91684.0,0.1505401]
[1763547071876,0.3608,91687.0,91684.0,0.1505401]
[1763547071877,0.38368,91687.0,91686.0,0.0414]
[1763547072076,0.40542,91687.0,91686.0,0.0414]
[1763547073279,0.00236163,91690.0,91689.0,0.1505335]
[1763547073576,0.0001636,91690.0,91689.0,0.1505335]
[1763547079382,0.0230436,91690.0,91689.0,0.1505335]
[1763547079785,0.0447836,91690.0,91689.0,0.1505335]
[1763547083892,0.0576336,91690.0,91689.0,0.1505335]
[1763547084088,0.05983163,91690.0,91689.0,0.1505335]
[1763547084286,0.04698163,91690.0,91689.0,0.1505335]
[1763547084493,0.05983163,91690.0,91689.0,0.1505335]
[1763547088203,0.04698163,91690.0,91689.0,0.1505335]
[1763547088399,0.0447836,91690.0,91689.0,0.1505335]
[1763547089404,0.04698163,91690.0,91689.0,0.1505335]
[1763547092006,0.04698163,91690.0,91689.0,0.1515335]
[1763547093907,0.00236163,91690.0,91689.0,0.1515335]
[1763547094505,0.0001636,91690.0,91689.0,0.1515335]
[1763547094703,0.0221136,91690.0,91689.0,0.1515335]
[1763547094899,0.0001636,91690.0,91689.0,0.1515335]
[1763547095103,0.0574,91704.0,91703.0,0.1505175]
[1763547097801,0.1665157,91704.0,91703.0,0.1505175]
[1763547098401,0.05757,91695.0,91694.0,0.0208636]
[1763547098604,0.05757,91695.0,91694.0,0.0001636]
[1763547099299,0.41837,91695.0,91694.0,0.0001636]
[1763547099896,0.1536847,91688.0,91687.0,0.1091359]
[1763547100110,0.1221607,91685.0,91684.0,0.1299987]
[1763547100303,0.1667107,91685.0,91684.0,0.1508587]
[1763547100500,0.05757,91685.0,91684.0,0.1508587]
[1763547101203,0.0226,91678.0,91677.0,0.1300055]
[1763547101400,0.04455,91678.0,91677.0,0.1300055]
[1763547101596,0.04094385,91678.0,91677.0,0.1518155]
[1763547101808,0.03994385,91678.0,91677.0,0.1518155]
[1763547103005,0.03994385,91678.0,91677.0,0.1538155]
[1763547105608,0.03994385,91678.0,91677.0,0.1559755]
[1763547107313,0.03994385,91678.0,91677.0,0.002]
[1763547108508,0.03994385,91678.0,91677.0,0.04683]
[1763547108907,0.03994385,91678.0,91677.0,0.002]
[1763547109716,0.05757,91660.0,91659.0,0.08359958]
[1763547109919,0.05976803,91660.0,91659.0,0.04483]
[1763547110208,0.05976803,91660.0,91659.0,0.02302]
[1763547110416,0.04455,91651.0,91650.0,0.1540093]
[1763547110912,0.04455,91651.0,91650.0,0.04483]
[1763547112007,0.04455,91651.0,91650.0,0.04683]
[1763547112608,0.04455,91651.0,91650.0,0.002]
[1763547113213,0.04455,91651.0,91650.0,0.02502]
[1763547113816,0.04455,91651.0,91650.0,0.002]
[1763547117910,0.04455,91651.0,91650.0,0.02502]
[1763547118720,0.04455,91651.0,91650.0,0.04683]
[1763547120321,0.04455,91651.0,91650.0,0.002]
[1763547120511,0.04455,91651.0,91650.0,0.04683]
[1763547122417,0.04455,91651.0,91650.0,0.04824]
[1763547124423,0.14979,91651.0,91650.0,0.04824]
[1763547125023,0.04455,91651.0,91650.0,0.04824]
[1763547125525,0.2589694,91651.0,91650.0,0.04824]
[1763547129330,0.14979,91651.0,91650.0,0.04824]
[1763547129827,0.14979,91651.0,91650.0,0.04724]
[1763547130123,0.14979,91651.0,91650.0,0.04624]
[1763547130328,0.17351181,91651.0,91650.0,0.04624]
[1763547130822,0.1547736,91647.0,91646.0,0.04523279]
[1763547131021,0.04559,91647.0,91646.0,0.15441759]
[1763547135330,0.06934605,91647.0,91646.0,0.15441759]
[1763547137028,0.06934605,91647.0,91646.0,0.04523279]
[1763547137231,0.06934605,91647.0,91646.0,0.00027279]
[1763547138331,0.06934605,91647.0,91646.0,0.04523279]
[1763547138732,0.06934605,91647.0,91646.0,0.02201279]
[1763547139032,0.06934605,91647.0,91646.0,0.04523279]
[1763547139229,0.06934605,91647.0,91646.0,0.02201279]
[1763547139432,0.06934605,91647.0,91646.0,0.00027279]
[1763547141431,0.17458605,91647.0,91646.0,0.00027279]
[1763547146536,0.1516795,91642.0,91641.0,0.0231636]
[1763547146736,0.17543555,91642.0,91641.0,0.0231636]
[1763547147238,0.17024845,91642.0,91641.0,0.0444236]
[1763547148536,0.17024845,91642.0,91641.0,0.0001636]
[1763547148941,0.17024845,91642.0,91641.0,0.0231636]
[1763547149440,0.17024845,91642.0,91641.0,0.0444236]
[1763547149634,0.27548845,91642.0,91641.0,0.0444236]
[1763547150542,0.27548845,91642.0,91641.0,0.0231636]
[1763547151344,0.27548845,91642.0,91641.0,0.0444236]
[1763547154345,0.27548845,91642.0,91641.0,0.153615]
[1763547156043,0.16629895,91642.0,91641.0,0.153615]
[1763547157436,0.1425429,91642.0,91641.0,0.153615]
[1763547159143,0.1425429,91642.0,91641.0,0.0444236]
[1763547160848,0.1425429,91642.0,91641.0,0.0001636]
[1763547161241,0.1425429,91642.0,91637.0,0.03897785]
[1763547161242,0.04378,91638.0,91637.0,0.02206]
[1763547161441,0.04378,91638.0,91623.0,0.18752836]
[1763547161442,0.1091979,91635.0,91634.0,0.03897785]
[1763547161642,0.1529827,91631.0,91630.0,0.03897785]
[1763547161841,0.1529827,91631.0,91627.0,0.02206]
[1763547161842,0.1220862,91628.0,91627.0,0.02206]
[1763547162044,0.2711062,91628.0,91627.0,0.02206]
[1763547163050,0.2711062,91628.0,91627.0,0.02306]
[1763547163544,0.2711062,91628.0,91627.0,0.001]
[1763547164148,0.1529976,91619.0,91618.0,0.02222369]
[1763547164354,0.6190376,91619.0,91618.0,0.00016369]
[1763547165945,0.6190376,91619.0,91606.0,0.04345291]
[1763547165946,0.1530119,91607.0,91606.0,0.04345291]
[1763547166151,0.2582519,91607.0,91606.0,0.04345291]
[1763547166348,0.2582519,91607.0,91606.0,0.00027291]
[1763547166850,0.2582519,91607.0,91606.0,0.02233291]
[1763547167944,0.2582519,91607.0,91606.0,0.00027291]
[1763547168755,0.2582519,91607.0,91606.0,0.04345291]
[1763547168954,0.2582519,91607.0,91606.0,0.02233291]
[1763547169146,0.2582519,91607.0,91606.0,0.00027291]
[1763547170662,0.2582519,91607.0,91605.0,8.272e-05]
[1763547170663,0.04378,91606.0,91605.0,8.272e-05]
[1763547170855,0.04378,91599.0,91598.0,0.1524219]
[1763547171043,0.2582614,91599.0,91598.0,0.1524219]
[1763547171550,0.2582614,91599.0,91598.0,0.04318]
[1763547171756,0.25834412,91599.0,91598.0,0.04318]
[1763547173152,0.25834412,91599.0,91598.0,0.02206]
[1763547173358,0.04378,91598.0,91597.0,0.00016369]
[1763547173951,1.54378,91598.0,91597.0,0.00016369]
[1763547174660,1.54378,91598.0,91597.0,0.02222369]
[1763547175462,1.54378,91598.0,91597.0,0.04334369]
[1763547177166,1.54378,91598.0,91597.0,0.00016369]
[1763547177460,1.54378,91598.0,91597.0,0.04334369]
[1763547178658,1.54378,91598.0,91597.0,0.00016369]
[1763547178963,1.64902,91598.0,91597.0,0.02222369]
[1763547179964,1.54378,91598.0,91597.0,0.04334369]
[1763547180164,1.64902,91598.0,91597.0,0.04334369]
[1763547180665,0.02153272,91599.0,91598.0,0.1524226]
[1763547180863,0.14910272,91599.0,91598.0,0.1524226]
[1763547181365,0.25834352,91599.0,91598.0,0.152422]
[1763547181756,0.15310352,91599.0,91598.0,0.0451]
[1763547182151,0.14910272,91599.0,91598.0,0.0451]
[1763547183167,0.04386272,91599.0,91598.0,0.0451]
[1763547183567,0.14914272,91599.0,91598.0,0.0451]
[1763547183965,8.272e-05,91599.0,91598.0,0.4059]
[1763547184164,0.0233,91615.0,91614.0,0.1551929]
[1763547184364,0.12858,91615.0,91614.0,0.1551929]
[1763547184564,1.62858,91615.0,91614.0,0.1551929]
[1763547185161,0.15182,91615.0,91614.0,0.04597]
[1763547185365,0.15182,91615.0,91614.0,0.02293]
[1763547185673,0.16638,91615.0,91614.0,0.04597]
[1763547185865,0.16638,91615.0,91614.0,0.02293]
[1763547186066,0.16638,91615.0,91605.0,0.1220133]
[1763547186067,0.1557725,91606.0,91605.0,0.1679833]
[1763547186471,0.04654,91606.0,91605.0,0.1679833]
[1763547188062,0.00219803,91610.0,91609.0,0.1551995]
[1763547188767,0.02549803,91610.0,91609.0,0.1551995]
[1763547189480,0.04873803,91610.0,91609.0,0.1551995]
[1763547189874,0.04873803,91610.0,91609.0,0.04597]
[1763547190574,0.04873803,91610.0,91609.0,0.1551995]
[1763547190977,0.02549803,91610.0,91609.0,0.1551995]
[1763547191274,0.00219803,91610.0,91609.0,0.1551995]
[1763547191670,0.02549803,91610.0,91609.0,0.1551995]
[1763547192671,0.00219803,91610.0,91609.0,0.1551995]
[1763547192876,0.02549803,91610.0,91609.0,0.1551995]
[1763547193673,0.04873803,91610.0,91609.0,0.1551995]
[1763547193873,0.07251951,91610.0,91609.0,0.1551995]
[1763547195074,0.18174721,91610.0,91609.0,0.1551995]
[1763547195278,0.07251951,91610.0,91609.0,0.1551995]
[1763547203283,0.07251951,91610.0,91609.0,0.04597]
[1763547203480,0.08520951,91610.0,91609.0,0.02293]
[1763547203879,0.04418,91608.0,91607.0,0.1519608]
[1763547204188,0.06796148,91608.0,91607.0,0.04273]
[1763547213285,0.06796148,91608.0,91607.0,0.1519614]
[1763547214295,0.06796148,91608.0,91607.0,0.04273]
[1763547216287,0.1092422,91599.0,91598.0,0.109238]
[1763547216494,0.17832368,91599.0,91598.0,0.154518]
[1763547218490,0.17832368,91599.0,91598.0,0.04528]
[1763547220588,0.0453,91598.0,91586.0,0.3608]
[1763547220783,0.06908148,91598.0,91586.0,0.3608]
[1763547222288,0.06908148,91598.0,91580.0,0.01393]
[1763547222594,0.1545629,91581.0,91580.0,0.05921]
[1763547222998,0.1092629,91581.0,91580.0,0.05921]
[1763547223203,0.1316329,91581.0,91580.0,0.05921]
[1763547223991,0.1316329,91581.0,91580.0,0.1684741]
[1763547224191,0.1545629,91581.0,91580.0,0.1684741]
[1763547224391,0.1545629,91581.0,91580.0,0.05921]
[1763547224598,0.1545629,91581.0,91580.0,0.06021]
[1763547224796,0.1545629,91581.0,91580.0,0.06121]
[1763547224999,0.1785698,91581.0,91580.0,0.06121]
[1763547225302,0.1545629,91581.0,91580.0,0.06121]
[1763547225504,0.17856366,91581.0,91580.0,0.06121]
[1763547225803,0.17856366,91581.0,91580.0,0.06021]
[1763547226004,0.17856366,91581.0,91580.0,0.06121]
[1763547226305,0.1785589,91581.0,91580.0,0.06121]
[1763547226596,0.1785589,91581.0,91580.0,0.1704741]
[1763547226802,0.1785589,91581.0,91580.0,0.06021]
[1763547226988,0.1785589,91581.0,91580.0,0.06121]
[1763547227193,0.1785589,91581.0,91580.0,0.04728]
[1763547227194,0.1545629,91581.0,91580.0,0.04728]
[1763547227796,0.1545629,91581.0,91580.0,0.04628]
[1763547228099,0.1545629,91581.0,91580.0,0.06121]
[1763547228692,0.0453,91581.0,91580.0,0.06121]
[1763547230797,0.46604,91587.0,91586.0,0.04528]
[1763547230798,0.3608,91587.0,91586.0,0.04528]
[1763547231006,0.49002214,91587.0,91586.0,0.04528]
[1763547231401,0.43008214,91587.0,91586.0,0.04528]
[1763547232100,0.11161342,91590.0,91589.0,0.1092527]
[1763547232305,0.15691342,91590.0,91589.0,0.1545327]
[1763547232611,0.18089457,91590.0,91589.0,0.1545327]
[1763547238107,0.07164297,91590.0,91589.0,0.1545327]
[1763547238306,0.06944494,91590.0,91589.0,0.1545327]
[1763547238501,0.13339704,91590.0,91589.0,0.1545327]
[1763547238805,0.02414494,91590.0,91589.0,0.1545327]
[1763547239394,0.02414494,91590.0,91589.0,0.04528]
[1763547241206,0.07164297,91590.0,91589.0,0.04528]
[1763547241597,0.1532163,91586.0,91585.0,0.40606]
[1763547241901,0.17719745,91586.0,91585.0,0.40606]
[1763547242108,0.17719745,91586.0,91585.0,0.41973]
[1763547242712,0.17719745,91586.0,91585.0,0.05893]
[1763547242912,0.1532259,91578.0,91577.0,0.40606]
[1763547243113,0.17720705,91578.0,91577.0,0.40606]
[1763547243802,0.15616705,91578.0,91577.0,0.40606]
[1763547244007,0.13324705,91578.0,91577.0,0.40606]
[1763547244302,0.17720705,91578.0,91577.0,0.40606]
[1763547244612,0.17720705,91578.0,91577.0,0.40706]
[1763547244813,0.17720705,91578.0,91577.0,0.40806]
[1763547245608,0.15616705,91578.0,91577.0,0.40806]
[1763547245913,0.02398115,91578.0,91577.0,0.40806]
[1763547246110,0.00219803,91580.0,91579.0,0.04526]
[1763547246318,0.02680173,91580.0,91579.0,0.04526]
[1763547247513,0.0246037,91580.0,91579.0,0.04526]
[1763547247711,0.04396,91588.0,91587.0,0.04526]
[1763547247911,0.02501713,91588.0,91587.0,0.1545158]
[1763547248312,0.04793713,91588.0,91587.0,0.1545158]
[1763547249618,0.02501713,91588.0,91587.0,0.1545158]
[1763547249916,0.06897713,91588.0,91587.0,0.1545158]
[1763547252116,0.02501713,91588.0,91587.0,0.1545158]
[1763547255319,0.04793713,91588.0,91587.0,0.1545158]
[1763547255522,0.02501713,91588.0,91587.0,0.1545158]
[1763547258023,0.13427163,91588.0,91587.0,0.1545158]
[1763547258224,0.15719163,91588.0,91587.0,0.1545158]
[1763547258412,0.17823163,91588.0,91587.0,0.04526]
[1763547262919,0.53903163,91588.0,91587.0,0.02194]
[1763547263421,0.53903163,91588.0,91587.0,0.04526]
[1763547264220,0.53903163,91588.0,91582.0,0.10524]
[1763547264221,0.1540393,91584.0,91583.0,0.0225]
[1763547264526,0.1540465,91582.0,91581.0,0.1317617]
[1763547264727,0.17906363,91582.0,91581.0,0.1548417]
[1763547265224,0.17906363,91582.0,91581.0,0.04558]
[1763547266225,0.1540465,91578.0,91577.0,0.40638]
[1763547266526,0.17806363,91578.0,91577.0,0.40638]
[1763547267329,0.17806363,91578.0,91577.0,0.40738]
[1763547267529,0.17806363,91578.0,91577.0,0.40838]
[1763547267915,0.06979713,91578.0,91577.0,0.40838]
[1763547269626,0.02501713,91578.0,91577.0,0.40838]
[1763547269831,0.02392803,91580.0,91579.0,0.04558]
[1763547270128,0.04894167,91580.0,91579.0,0.04558]
[1763547270328,0.04674364,91580.0,91579.0,0.04558]
[1763547270531,0.02501364,91580.0,91579.0,0.04558]
[1763547270930,0.15419569,91590.0,91589.0,0.04558]
[1763547271117,0.18140661,91590.0,91589.0,0.04558]
[1763547271323,0.02737471,91590.0,91589.0,0.04558]
[1763547272231,0.04910471,91590.0,91589.0,0.04558]
[1763547272431,0.07212471,91590.0,91589.0,0.04558]
[1763547274329,0.04538,91586.0,91585.0,0.3608]
[1763547274632,0.04538,91578.0,91577.0,0.40553]
[1763547274836,0.07039289,91578.0,91577.0,0.40553]
[1763547275531,0.04737289,91578.0,91577.0,0.40553]
[1763547276124,0.04737289,91578.0,91577.0,0.40653]
[1763547276325,0.04737289,91578.0,91577.0,0.40753]
[1763547278527,0.02501289,91578.0,91577.0,0.40753]
[1763547278728,0.04538,91589.0,91588.0,0.04473]
[1763547279033,0.07028492,91589.0,91588.0,0.04473]
[1763547285533,0.1092545,91588.0,91581.0,0.02326]
[1763547285738,0.1546417,91582.0,91581.0,0.04473]
[1763547286040,0.17954662,91582.0,91581.0,0.04473]
[1763547289030,0.17954662,91582.0,91572.0,0.04473]
[1763547289031,0.1092724,91573.0,91572.0,0.04473]
[1763547289237,0.04538,91572.0,91571.0,0.00016379]
[1763547289539,0.1546596,91567.0,91566.0,0.00027303]
[1763547289838,0.17956452,91567.0,91566.0,0.00027303]
[1763547290041,0.17956452,91567.0,91566.0,0.04500303]
[1763547290239,0.17856452,91567.0,91566.0,0.04500303]
[1763547291444,0.06928492,91567.0,91566.0,0.04500303]
[1763547291739,0.06928492,91567.0,91566.0,0.00027303]
[1763547292040,0.06928492,91567.0,91566.0,0.04500303]
[1763547292238,0.06928492,91567.0,91566.0,0.00027303]
[1763547293434,0.1546703,91558.0,91557.0,0.00010935]
[1763547293636,0.17957522,91558.0,91557.0,0.00010935]
[1763547294341,0.17957522,91558.0,91557.0,0.02336935]
[1763547294545,0.17957522,91558.0,91557.0,0.00210935]
[1763547295748,0.07028492,91558.0,91557.0,0.04683935]
[1763547297845,0.17552492,91558.0,91557.0,0.04683935]
[1763547299445,0.15062,91558.0,91557.0,0.04683935]
[1763547300342,0.04538,91558.0,91557.0,0.04683935]
[1763547300548,0.00219803,91560.0,91559.0,0.04473]
[1763547300850,0.04757803,91560.0,91559.0,0.04473]
[1763547301543,0.04344,91558.0,91557.0,0.00110935]
[1763547302146,0.06864066,91558.0,91557.0,0.00110935]
[1763547302532,0.06764066,91558.0,91557.0,0.00010935]
[1763547303137,0.17292066,91558.0,91557.0,0.04462935]
[1763547303342,0.17292066,91558.0,91557.0,0.04562935]
[1763547303542,0.17292066,91558.0,91557.0,0.00110935]
[1763547304243,0.04344,91555.0,91554.0,0.04463192]
[1763547304448,0.06864066,91555.0,91554.0,0.04463192]
[1763547306543,0.11674,91564.0,91563.0,0.1538044]
[1763547306743,0.14193847,91564.0,91563.0,0.1538044]
[1763547309752,0.14193847,91564.0,91563.0,0.04452]
[1763547309948,0.06963847,91564.0,91563.0,0.04452]
[1763547311748,0.02519847,91564.0,91563.0,0.04452]
[1763547311951,0.00016379,91567.0,91566.0,0.0584]
[1763547312154,0.09662733,91590.0,91589.0,0.04452]
[1763547312351,0.09882536,91590.0,91589.0,0.04452]
[1763547313056,0.10880536,91590.0,91589.0,0.04452]
[1763547313352,0.10880536,91590.0,91580.0,0.15394789]
[1763547313353,0.04444,91581.0,91580.0,0.15394789]
[1763547314453,0.04544,91581.0,91580.0,0.15394789]
[1763547315446,0.04544,91581.0,91580.0,0.04468379]
[1763547315843,0.04544,91581.0,91580.0,0.00016379]
[1763547317746,0.04444,91581.0,91580.0,0.00016379]
[1763547318052,0.04544,91581.0,91580.0,0.00016379]
[1763547319843,0.14968,91581.0,91580.0,0.00016379]
[1763547320049,0.04444,91566.0,91565.0,0.514602]
[1763547320261,0.05741,91566.0,91565.0,0.514602]
[1763547320557,0.04444,91566.0,91565.0,0.514602]
[1763547321455,0.02516803,91570.0,91569.0,0.1537972]
[1763547321845,0.04663803,91570.0,91569.0,0.1537972]
[1763547322046,0.00219803,91570.0,91569.0,0.1537972]
[1763547322257,0.00016379,91575.0,91574.0,0.1537912]
[1763547322448,0.00016379,91575.0,91574.0,0.5145912]
[1763547323555,0.02313379,91575.0,91574.0,0.5145912]
[1763547324150,0.00016379,91575.0,91574.0,0.5145912]
[1763547326855,0.02246379,91575.0,91574.0,0.5145912]
[1763547327056,0.00016379,91575.0,91574.0,0.5145912]
[1763547329653,0.00016379,91575.0,91574.0,0.52547905]
[1763547330056,0.00016379,91575.0,91574.0,0.5145912]
[1763547330360,0.04540379,91575.0,91574.0,0.5145912]
[1763547331150,0.04540379,91575.0,91574.0,0.04452]
[1763547331558,0.07069759,91575.0,91574.0,0.04452]
[1763547333651,0.07069759,91575.0,91573.0,0.1092715]
[1763547333652,0.1092712,91574.0,91573.0,0.1092715]
[1763547333856,0.04509,91566.0,91565.0,0.514052]
[1763547334162,0.0703838,91566.0,91565.0,0.514052]
[1763547334663,0.0252938,91566.0,91565.0,0.514052]
[1763547334864,0.07039971,91569.0,91568.0,0.1532484]
[1763547335453,0.04783971,91569.0,91568.0,0.1532484]
[1763547335863,0.02530971,91569.0,91568.0,0.1532484]
[1763547336462,0.02440654,91569.0,91568.0,0.1532484]
[1763547336662,0.00016379,91575.0,91574.0,0.1532412]
[1763547344161,0.04525379,91575.0,91574.0,0.1532412]
[1763547344464,0.04525379,91575.0,91574.0,0.2584812]
[1763547345670,0.02269379,91575.0,91574.0,0.2584812]
[1763547347271,0.04525379,91575.0,91574.0,0.2584812]
[1763547347470,0.02269379,91575.0,91574.0,0.2584812]
[1763547348262,0.00016379,91575.0,91574.0,0.2584812]
[1763547348469,0.0255388,91575.0,91574.0,0.2584812]
[1763547348662,0.0706288,91575.0,91574.0,0.2584812]
[1763547349670,0.0706288,91575.0,91574.0,0.04397]
[1763547350368,0.04509,91574.0,91573.0,0.1092718]
[1763547350568,0.07046501,91574.0,91573.0,0.1532418]
[1763547353772,0.04790501,91574.0,91573.0,0.1532418]
[1763547354073,0.02537501,91574.0,91573.0,0.1532418]
[1763547357178,0.07046501,91574.0,91573.0,0.1532418]
[1763547358776,0.07039112,91574.0,91573.0,0.1532418]
[1763547359168,0.17966232,91574.0,91573.0,0.1532418]
[1763547359774,0.07039112,91574.0,91573.0,0.1532418]
[1763547360176,0.04783112,91574.0,91573.0,0.1532418]
[1763547360476,0.07039112,91574.0,91573.0,0.1532418]
[1763547361467,0.17966232,91574.0,91573.0,0.1532418]
[1763547362577,0.07039112,91574.0,91573.0,0.1532418]
[1763547363377,0.17966232,91574.0,91573.0,0.1532418]
[1763547365780,0.17966232,91574.0,91573.0,0.04397]
[1763547366775,0.07039112,91574.0,91573.0,0.04397]
[1763547367176,0.02530112,91574.0,91573.0,0.04397]
[1763547368077,4.91e-06,91575.0,91574.0,0.1529012]
[1763547368379,4.91e-06,91575.0,91574.0,0.2581412]
[1763547381487,0.04476291,91606.0,91605.0,0.1528643]
[1763547381789,0.06988388,91606.0,91605.0,0.1528643]
[1763547382190,0.04679388,91606.0,91605.0,0.1528643]
[1763547382396,0.06988388,91606.0,91605.0,0.1528643]
[1763547383791,0.07088388,91606.0,91605.0,0.1528643]
[1763547383998,0.04779388,91606.0,91605.0,0.1528643]
[1763547384191,0.02639388,91606.0,91605.0,0.1528643]
[1763547385297,0.00016379,91615.0,91614.0,0.1536735]
[1763547385600,0.02523058,91615.0,91614.0,0.5273135]
[1763547386388,0.00016379,91615.0,91614.0,0.5273135]
[1763547386596,0.00116379,91615.0,91614.0,0.5273135]
[1763547387096,0.00016379,91615.0,91614.0,0.5273135]
[1763547387297,0.00116379,91615.0,91614.0,0.5273135]
[1763547387601,0.40373,91630.0,91629.0,0.1536557]
[1763547387805,0.43096898,91630.0,91629.0,0.1536557]
[1763547389096,0.43196898,91630.0,91629.0,0.1536557]
[1763547389295,0.04293,91623.0,91622.0,0.14965]
[1763547390696,0.04493,91623.0,91622.0,0.14965]
[1763547390990,0.04293,91621.0,91620.0,0.00016379]
[1763547391194,0.42874049,91621.0,91620.0,0.00016379]
[1763547391404,0.1521607,91608.0,91607.0,0.14965]
[1763547391604,0.04387,91603.0,91602.0,0.1323668]
[1763547391807,0.04387,91599.0,91593.0,0.3608]
[1763547391997,0.04387,91599.0,91597.0,0.1092432]
[1763547392198,0.1230762,91595.0,91594.0,0.04611]
[1763547392394,0.04387,91594.0,91593.0,0.5161577]